Workbook

Sheet Solution
A1: 23090201 Right Issue Expenses
A3: DocumentNo | B3: Type | C3: Doc. Date | D3: Amt in loc.cur. | E3: Profit Ctr | F3: Text | G3: Year/month
A4: 1100111333 | B4: SA | C4: 22.12.2011 | D4: -29558508 | E4: 108100 | F4: Reimbursement of Right Issue Exp-Axis Bank | G4: 2011/09
A5: 1100185656 | B5: SA | C5: 19.03.2012 | D5: -338265926 | E5: 108100 | F5: EXPS INCURRED ON RIGHT ISSUE TFD -SECURITY PREMIUM | G5: 2011/12
A6: 1100185656 | B6: SA | C6: 19.03.2012 | D6: -40407294 | E6: 108200 | F6: EXPS INCURRED ON RIGHT ISSUE TFD -SECURITY PREMIUM | G6: 2011/12
D7: =SUM(D4:D6) -> -408231728
A8: 600137343 | B8: AB | C8: 31.10.2011 | D8: 1124 | E8: 108200 | F8: B.NO.IS11/901147 DT.30/09/2011 BOM-LHR-DEN-LHR-BOM | G8: 2011/07
A9: 600137343 | B9: AB | C9: 31.10.2011 | D9: 10912 | E9: 108200 | F9: B.NO.IS11/901147 DT.30/09/2011 BOM-LHR-DEN-LHR-BOM | G9: 2011/07
A10: 600137345 | B10: AB | C10: 31.10.2011 | D10: -2312 | E10: 108200 | F10: B.NO.IS11/901154 DT.30/09/2011 BOM-HKG-BOM 4/10/11 | G10: 2011/07
A11: 600137345 | B11: AB | C11: 31.10.2011 | D11: 264 | E11: 108200 | F11: B.NO.IS11/901154 DT.30/09/2011 BOM-HKG-BOM 4/10/11 | G11: 2011/07
A12: 600137345 | B12: AB | C12: 31.10.2011 | D12: 2559 | E12: 108200 | F12: B.NO.IS11/901154 DT.30/09/2011 BOM-HKG-BOM 4/10/11 | G12: 2011/07
A13: 600137330 | B13: AB | C13: 31.10.2011 | D13: 85815 | E13: 108200 | F13: B.NO.IS11/901156 DT.30/09/2011 BOM-HKG-BOM 4/10/11 | G13: 2011/07
A14: 600137328 | B14: AB | C14: 31.10.2011 | D14: 85815 | E14: 108200 | F14: B.NO.IS11/901157 DT.30/09/2011 BOM-HKG-BOM 4/10/11 | G14: 2011/07
A15: 600137331 | B15: AB | C15: 31.10.2011 | D15: 226927 | E15: 108200 | F15: B.NO.IS11/901176 DT.30/09/2011 BOM-LHR-BOM 5,7/10/ | G15: 2011/07
A16: 600137332 | B16: AB | C16: 31.10.2011 | D16: 7676 | E16: 108200 | F16: B.NO.IS11/901228 DT.10/10/2011 REISSUE CHARGES | G16: 2011/07
D17: =SUM(D8:D16) -> 418780
A18: 3400014518 | B18: KR | C18: 21.02.2012 | D18: 3000000 | E18: 108200 | F18: CHATURVEDI & SHAH B.NO. SCS-021324 DT. 10/02/2012 | G18: 2011/11
D19: =SUM(D18) -> 3000000
A20: 3400010306 | B20: KR | C20: 15.12.2011 | D20: 64200 | E20: 108200 | F20: CENTRAL DEPOSITORY SEV. INDIA LT B.OPS/11-12/3087 | G20: 2011/09
D21: =SUM(D20) -> 64200
A22: 3400008489 | B22: KR | C22: 23.11.2011 | D22: 3804855 | E22: 108100 | F22: IDBI-Allotment & ListingBN. IB/11-12/0115-23.11.11 | G22: 2011/08
A23: 3400008490 | B23: KR | C23: 23.11.2011 | D23: 91907 | E23: 108100 | F23: IDBI-Out of Pocket Exp BN. IB/11-12/0117-23.11.11 | G23: 2011/08
A24: 3400001201 | B24: KR | C24: 23.05.2011 | D24: 10000000 | E24: 108100 | F24: IDBI-submissionFinal -DLoF to Company | G24: 2011/02
A25: 3400001202 | B25: KR | C25: 05.04.2011 | D25: 2500000 | E25: 108100 | F25: IDBI-Signing-Acceptance of Engagament Letter | G25: 2011/02
A26: 3400001203 | B26: KR | C26: 23.05.2011 | D26: 53800 | E26: 108100 | F26: IDBI- out of Pocket- 01.03.11 to 23.05.11 | G26: 2011/02
A27: 3400007773 | B27: KR | C27: 31.10.2011 | D27: 12500000 | E27: 108100 | F27: IDBI-Issue Clousure Fees bn IB/11-12/103- 31.10.11 | G27: 2011/08
A28: 3400014009 | B28: KR | C28: 20.01.2012 | D28: 100000 | E28: 108100 | F28: UPFRONT FEE FROM IDBI BANK LTD 20/1/2012 | G28: 2011/11
D29: =SUM(D22:D28) -> 29050562
A30: 3400001205 | B30: KR | C30: 31.03.2011 | D30: 10000000 | E30: 108100 | F30: SBI-Signing-Acceptance of Engagament Letter | G30: 2011/02
A31: 3400001207 | B31: KR | C31: 31.03.2011 | D31: 50000000 | E31: 108100 | F31: SBI-submissionFinal -DLoF to Company | G31: 2011/02
A32: 3400007758 | B32: KR | C32: 02.11.2011 | D32: 10000000 | E32: 108100 | F32: Issue closing fees of SBI BN CMG/11-12/37 | G32: 2011/08
A33: 3400007759 | B33: KR | C33: 04.11.2011 | D33: 22829129 | E33: 108100 | F33: SBI-Allotment & Listing Fees of Equity Shares | G33: 2011/08
A34: 3400012333 | B34: KR | C34: 09.01.2012 | D34: 235273 | E34: 108100 | F34: SBI-Right Issue Exp BN CMG-11-12/25 | G34: 2011/10
A35: 3400013045 | B35: KR | C35: 24.01.2012 | D35: 341861 | E35: 108100 | F35: SBI-Right Issue Exp BN CMG/2011-12/48, 16.1.12 | G35: 2011/10
D36: =SUM(D30:D35) -> 93406263
A37: 3400003053 | B37: KR | C37: 19.05.2011 | D37: 5107446 | E37: 108100 | F37: Right Issue - Fee for Legal service Bill 65984103 | G37: 2011/03
A38: 3400003054 | B38: KR | C38: 01.05.2011 | D38: 4478000 | E38: 108100 | F38: Right Issue - Fee for Legal service Bill 65984108 | G38: 2011/03
D39: =SUM(D37:D38) -> 9585446
A40: 3400006510 | B40: KR | C40: 10.09.2011 | D40: 28500000 | E40: 108100 | F40: Underwriting Fee @3.00% on 2.85 Cr Cent Bank | G40: 2011/06
A41: 3400006511 | B41: KR | C41: 10.09.2011 | D41: 24600000 | E41: 108100 | F41: Underwriting Fee @3.00% on 82 Cr OBC | G41: 2011/06
A42: 3400006512 | B42: KR | C42: 10.09.2011 | D42: 27070800 | E42: 108100 | F42: Underwriting Fee @3.00% on 90.2.Cr Canara Bank | G42: 2011/06
A43: 3400006513 | B43: KR | C43: 10.09.2011 | D43: 29778000 | E43: 108100 | F43: Underwriting Fee @3.00% on 99.26 Cr SBI | G43: 2011/06
A44: 3400006514 | B44: KR | C44: 10.09.2011 | D44: 27070800 | E44: 108100 | F44: Underwriting Fee @3.00% on 90.23 Cr IOB | G44: 2011/06
A45: 3400006573 | B45: KR | C45: 10.09.2011 | D45: 60000000 | E45: 108100 | F45: Underwriting Fee @3.00% on 200 Cr IDBI | G45: 2011/06
A46: 3400007782 | B46: KR | C46: 08.11.2011 | D46: 75000 | E46: 108100 | F46: PNB-Under Writing Fees BN PNBISL/MB/57/11-12 | G46: 2011/08
A47: 3400008487 | B47: KR | C47: 23.11.2011 | D47: 75000 | E47: 108100 | F47: IDBI-underwriting comm. BN. IB/11-12/0116-23.11.11 | G47: 2011/08
A48: 3400007780 | B48: KR | C48: 04.11.2011 | D48: 75000 | E48: 108100 | F48: SBI-Underwriting Fees BN CMG/11-12/39 | G48: 2011/08
D49: =SUM(D40:D48) -> 197244600
A50: 1100089395 | B50: SA | C50: 16.11.2011 | D50: 1350 | E50: 108100 | F50: USD 1350@50.765 to Jones Day agt. Cr balance | G50: 2011/08
A51: 3400008073 | B51: KR | C51: 10.10.2011 | D51: 262730 | E51: 108100 | F51: right Issue-Jon Day-disbursement charges | G51: 2011/08
A52: 3400008074 | B52: KR | C52: 20.10.2011 | D52: 5166990 | E52: 108100 | F52: right Issue-Jon Day-disbursement charges | G52: 2011/08
D53: =SUM(D50:D52) -> 5431070
A54: 3400007771 | B54: KR | C54: 01.11.2011 | D54: 7500000 | E54: 108100 | F54: PNB-Issue Clousure Fees BN PNBISL/MB/55/11-12 | G54: 2011/08
A55: 3400007772 | B55: KR | C55: 08.11.2011 | D55: 6341424.62 | E55: 108100 | F55: PNB-allotment & Listing of Equity Shares | G55: 2011/08
A56: 3400001212 | B56: KR | C56: 07.05.2011 | D56: 2500000 | E56: 108100 | F56: PNB-ACCEPTANCE FEE LEAD MGT ASSIGMENT | G56: 2011/02
A57: 3400001213 | B57: KR | C57: 24.05.2011 | D57: 10000000 | E57: 108100 | F57: PNB-SUBMISSION-DLoF TO COMOANY AS PER MGT LETTER | G57: 2011/02
A58: 3400008491 | B58: KR | C58: 25.11.2011 | D58: 17033 | E58: 108100 | F58: PNB-Out of pocket Expenses on 12.09.11 | G58: 2011/08
D59: =SUM(D54:D58) -> 26358457.62
A60: 600133149 | B60: AB | C60: 30.09.2011 | D60: 500000 | E60: 108100 | F60: APPLICATION MONEY PD SEBI TWDS RIGHT ISSUE APPROVA | G60: 2011/06
A61: 1100064405 | B61: SA | C61: 09.09.2011 | D61: 40000 | E61: 108200 | F61: SECURITIES & EXCHANGE BOARD OF INDIA PROCESSING F | G61: 2011/06
D62: =SUM(D60:D61) -> 540000
A63: 3400001064 | B63: KR | C63: 23.05.2011 | D63: 407801 | E63: 108200 | F63: KHAITAN & CO.B.NO. MUM/10-11/B00268 DT.12/05/2011 | G63: 2011/02
A64: 3400001064 | B64: KR | C64: 23.05.2011 | D64: 1000000 | E64: 108200 | F64: KHAITAN & CO.B.NO. MUM/10-11/B00268 DT.12/05/2011 | G64: 2011/02
A65: 3400001349 | B65: KR | C65: 30.05.2011 | D65: 7621 | E65: 108200 | F65: KHAITAN & CO.B.NO. MUM/10-11/B00378 DT.27/05/2011 | G65: 2011/02
A66: 3400001349 | B66: KR | C66: 30.05.2011 | D66: 3500000 | E66: 108200 | F66: KHAITAN & CO.B.NO. MUM/10-11/B00378 DT.27/05/2011 | G66: 2011/02
A67: 3400004142 | B67: KR | C67: 16.08.2011 | D67: 54222 | E67: 108200 | F67: KHAITAN & CO.B.NO. MUM/11-12/B00981 DT.10/08/2011 | G67: 2011/05
A68: 3400004142 | B68: KR | C68: 16.08.2011 | D68: 500000 | E68: 108200 | F68: KHAITAN & CO.B.NO. MUM/11-12/B00981 DT.10/08/2011 | G68: 2011/05
A69: 3400005485 | B69: KR | C69: 21.09.2011 | D69: 3246 | E69: 108200 | F69: KHAITAN & CO.B.NO. MUM/11-12/01264 DT.19/09/2011 | G69: 2011/06
A70: 3400005485 | B70: KR | C70: 21.09.2011 | D70: 500000 | E70: 108200 | F70: KHAITAN & CO.B.NO. MUM/11-12/01264 DT.19/09/2011 | G70: 2011/06
A71: 3400007946 | B71: KR | C71: 16.11.2011 | D71: 3747 | E71: 108200 | F71: KHAITAN & CO.B.NO. MUM/11-12/B1643 DT.07/11/2011 | G71: 2011/08
A72: 3400007946 | B72: KR | C72: 16.11.2011 | D72: 500000 | E72: 108200 | F72: KHAITAN & CO.B.NO. MUM/11-12/B1643 DT.07/11/2011 | G72: 2011/08
D73: =SUM(D63:D72) -> 6476637
A74: 1100122001 | B74: SA | C74: 24.03.2011 | D74: 2500000 | E74: 108100 | F74: SBI CAPITAL MARKET LTD.CMG/KI/BHL/10-11/78 | G74: 2010/12
A75: 3400012280 | B75: KR | C75: 24.03.2011 | D75: 2500000 | E75: 108100 | F75: SBI CAPITAL MARKET LTD.CMG/KI/BHL/10-11/88 22/03/ | G75: 2010/12
D76: =SUM(D74:D75) -> 5000000 | F76: SBI CAPITAL MARKET LTD.
A77: 3400001075 | B77: KR | C77: 16.05.2011 | D77: 1000000 | E77: 108200 | F77: NATIONAL STOCK EXCHANGE OF INDIA LTD PROCESSING FE | G77: 2011/02
A78: 3400001077 | B78: KR | C78: 16.05.2011 | D78: 1000000 | E78: 108200 | F78: BOMBAY STOCK EXCHANGE LTD PROCESSING FEES | G78: 2011/02
A79: 3400006958 | B79: KR | C79: 20.10.2011 | D79: 31500 | E79: 108200 | F79: BOMBAY STOCK EXCHANGE LTD PROCESSING FEES | G79: 2011/07
A80: 3400006959 | B80: KR | C80: 20.10.2011 | D80: 85000 | E80: 108200 | F80: NATIONAL STOCK EXCHANGE OF INDIA LTD PROCESSING FE | G80: 2011/07
D81: =SUM(D77:D80) -> 2116500
A82: 1100085055 | B82: SA | C82: 01.11.2011 | D82: 110 | E82: 108200 | F82: FRANKING ON SHARE CERTIFICATE ON ALLOTMENT EQUITY | G82: 2011/08
A83: 1100085055 | B83: SA | C83: 01.11.2011 | D83: 14796225 | E83: 108200 | F83: FRANKING ON SHARE CERTIFICATE ON ALLOTMENT EQUITY | G83: 2011/08
D84: =SUM(D82:D83) -> 14796335
A85: 3400007493 | B85: KR | C85: 31.10.2011 | D85: 371431 | E85: 108200 | F85: SHAREPRO SER. I.P.LTD.B. NO.1679/11-12 DT.25/10/11 | G85: 2011/07
A86: 3400007492 | B86: KR | C86: 31.10.2011 | D86: 842400 | E86: 108200 | F86: SHAREPRO SER. I.P.LTD.B. NO.1680/11-12 DT.25/10/11 | G86: 2011/07
A87: 3400009322 | B87: KR | C87: 09.12.2011 | D87: 506920 | E87: 108200 | F87: SHAREPRO SER. I.PVT.LTD.B.N.1834/11-12 DT.16/11/11 | G87: 2011/09
A88: 3400009321 | B88: KR | C88: 09.12.2011 | D88: 203308 | E88: 108200 | F88: SHAREPRO SER. I.PVT.LTD.B.N.1835/11-12 DT.16/11/11 | G88: 2011/09
A89: 3400014900 | B89: KR | C89: 29.02.2012 | D89: 8824 | E89: 108200 | F89: SHAREPRO SERV.I.PVT.LTD.B.NO.2191/11-12 04/01/2012 | G89: 2011/11
A90: 3400007418 | B90: KR | C90: 30.09.2011 | D90: 7638523.51 | E90: 108200 | F90: SHAREPRO SER. I.PVT.LTD.B. DT. 29/09/11 RIGHT ISSU | G90: 2011/06
D91: =SUM(D85:D90) -> 9571406.51
A92: 3400007737 | B92: KR | C92: 11.11.2011 | D92: 2579108 | E92: 108200 | F92: CRYSTAL FORMS PVT. LTD. B.NO.137/11-12 07/10/2011 | G92: 2011/08
A93: 3400007733 | B93: KR | C93: 11.11.2011 | D93: 10500 | E93: 108200 | F93: CRYSTAL FORMS PVT. LTD. B.NO.150/11-12 03/11/2011 | G93: 2011/08
A94: 3400007735 | B94: KR | C94: 11.11.2011 | D94: 130440 | E94: 108200 | F94: CRYSTAL FORMS PVT.LTD.B.NO.555 DT.22/09/2011 | G94: 2011/08
A95: 3400007734 | B95: KR | C95: 11.11.2011 | D95: 5775 | E95: 108200 | F95: CRYSTAL FORMS PVT.LTD.B.N.CF-MUM/120 DT.03/11/2011 | G95: 2011/08
D96: =SUM(D92:D95) -> 2725823
A97: 1100099837 | B97: SA | C97: 30.11.2011 | D97: 29978 | E97: 108200 | F97: NARAYAN RAMAN MUM-DEN-LHR-MUMBAI LOCAL CONVEYANCE | G97: 2011/08
A98: 1100099837 | B98: SA | C98: 30.11.2011 | D98: 85304 | E98: 108200 | F98: NARAYAN RAMAN MUMBAI - HKG 04/10/2011 NARAYAN R | G98: 2011/08
A99: 1100099837 | B99: SA | C99: 30.11.2011 | D99: 108422 | E99: 108200 | F99: NARAYAN RAMAN MUM-DEN-LHR-MUMBAI HOTELL BILLS | G99: 2011/08
A100: 1100099837 | B100: SA | C100: 30.11.2011 | D100: 363726 | E100: 108200 | F100: NARAYAN RAMAN MUM-DEN-LHR-MUMBAI 07/10/2011 | G100: 2011/08
D101: =SUM(D97:D100) -> 587430
A102: 3400008140 | B102: KR | C102: 21.11.2011 | D102: 110300 | E102: 108200 | F102: ADFACTORS ADV.P.LTD B.NO.ASSN/11/11-12/1869 14/11/ | G102: 2011/08
A103: 1100032753 | B103: SA | C103: 22.06.2011 | D103: 33632 | E103: 108200 | F103: ADFACTORS ADVERTISING B.NO.M/05/0161 DT.31/05/2011 | G103: 2011/03
A104: 3400006948 | B104: KR | C104: 19.10.2011 | D104: 97483 | E104: 108200 | F104: ADFACTORS ADVERTISING B.NO.M/05/0614 DT.30/09/2011 | G104: 2011/07
A105: 3400007947 | B105: KR | C105: 16.11.2011 | D105: 97483 | E105: 108200 | F105: ADFACTORS ADVERTISING B.NO.M/10/0635 DT.10/10/2011 | G105: 2011/08
A106: 3400008314 | B106: KR | C106: 25.11.2011 | D106: 58490 | E106: 108200 | F106: ADFACTORS ADVERTISING B.NO.M/11/0731 DT.11/11/2011 | G106: 2011/08
A107: 3400012381 | B107: KR | C107: 19.10.2011 | D107: 87735 | E107: 108200 | F107: ADFACTORS ADVERTISING B.NO.M/05/0608 30/09/11 | G107: 2011/07
A108: 3400012383 | B108: KR | C108: 19.10.2011 | D108: 9748 | E108: 108200 | F108: ADFACTORS ADVERTISING B.NO.M/05/0608 30/09/11\ | G108: 2011/07
D109: =SUM(D102:D108) -> 494871
A110: 600226701 | B110: AB | C110: 17.03.2011 | D110: 13425 | E110: 108100 | F110: HOTEL BILL SAP CAP TEAM 06/3-07/3/2011 AT NIRULA | G110: 2010/12
A111: 3400012026 | B111: KR | C111: 12.03.2011 | D111: 77432 | E111: 108100 | F111: HOTEL BILL OF SAP CAP TEAM 07/3-09/3/2011 | G111: 2010/12
A112: 3400012813 | B112: KR | C112: 29.03.2011 | D112: 14988 | E112: 108100 | F112: HOTEL BILL SBI CAP TEAM GITESH & SONAL MULAY | G112: 2010/12
A113: 600250469 | B113: AB | C113: 31.03.2011 | D113: 12004 | E113: 108100 | F113: AIR TKTS AUDITORS DEL/MUM 26/3 26/3 MULAY SONAL | G113: 2010/12
A114: 3400013297 | B114: KR | C114: 31.03.2011 | D114: 125829 | E114: 108100 | F114: HOTEL BILL SBI CAP TEAM NEHA,D VENU,ANISH | G114: 2010/12
A115: 600005729 | B115: AB | C115: 22.04.2011 | D115: 20654 | E115: 108100 | F115: BNO.6641,6713,6719 BOM/DEL&DEL/BOM JIGNESH,LOVKEKS | G115: 2011/01
A116: 3400000959 | B116: KR | C116: 19.05.2011 | D116: 27484 | E116: 108100 | F116: TAXI HIRED CHGS DURING MARCH'11 AUDITORS SBI CAP | G116: 2011/02
A117: 600024477 | B117: AB | C117: 26.05.2011 | D117: 89156 | E117: 108100 | F117: TAXI HIRED CHGS FOR SBI CAP OFFICIALS RECTIFIED | G117: 2011/02
A118: 600038460 | B118: AB | C118: 14.06.2011 | D118: 13560 | E118: 108100 | F118: AUDITORS TRAVELLING EXP DURING MUMBAI VISIT | G118: 2011/03
A119: 600051781 | B119: AB | C119: 16.06.2011 | D119: 4516 | E119: 108100 | F119: Bank ch. foreign Payment. SBI 2392 10.06.11 | G119: 2011/03
A120: 600050043 | B120: AB | C120: 28.06.2011 | D120: 16583 | E120: 108100 | F120: AIR TKTS BOM/DEL AMIT & JIGNESH AUDITORS 17/5 | G120: 2011/03
A121: 600145490 | B121: AB | C121: 30.09.2011 | D121: 317729 | E121: 108100 | F121: TRAV EXP CFO APR11 TO SEPT11 RIGHT ISSUE MATTER | G121: 2011/06
A122: 600145720 | B122: AB | C122: 30.09.2011 | D122: 504575 | E122: 108100 | F122: Bank Guarantee purchased for Right Issue | G122: 2011/06
A123: 1100026832 | B123: SA | C123: 10.03.2012 | D123: 30000 | E123: 108100 | F123: FDI REPORTING CHGS BY IDBI 10/3/2012 | G123: 2012/01
A124: 3400009235 | B124: KR | C124: 08.12.2011 | D124: 2500 | E124: 108200 | F124: PAWAN LAKHOTIA & CO B NO 11-12/021 DT.28/11/2011 | G124: 2011/09
A125: 1100083007 | B125: SA | C125: 25.10.2011 | D125: 28396 | E125: 108200 | F125: D/D Charges deducted by Applicant - Rights issue. | G125: 2011/07
A126: 1100106699 | B126: SA | C126: 30.09.2012 | D126: -30000 | E126: 108100 | F126: Right Issue Expenses transferred | G126: 2012/06
A127: 1100087276 | B127: SA | C127: 10.11.2011 | D127: 265 | E127: 108200 | F127: UNION BANK OF INDIA PROCESSING CHRG ASBA APP BHLRI | G127: 2011/08
A128: 3400007711 | B128: KR | C128: 10.11.2011 | D128: 84150 | E128: 108200 | F128: NSDL BILL NO. NSDL/CA/1112/006483 DT. 03/11/2011 | G128: 2011/08
A129: 1100071160 | B129: SA | C129: 28.09.2011 | D129: 10100 | E129: 108100 | F129: RIGHT ISSUE EXP. (STAMP PAPER) BY VIVEK MAMGAIN | G129: 2011/06
D130: =SUM(D110:D129) -> 1363346
D132: =+D130+D109+D101+D96+D91+D84+D81+D76+D73+D62+D59+D53+D49+D39+D36+D29+D21+D19+D17 -> 408231727.1
D133: =+D7 -> -408231728
